[Event "Titled Tuesday Blitz February 21 Late 2023"]
[White "Nunez V, Gustavo Eduardo"]
[Black "Sonnenschein, Philipp"]
[WhiteFideId "4403690"]
[BlackFideId "16250877"]
[WhiteElo "2212"]
[BlackElo "2224"]
[Result "0-1"]
[Round "08"]
[TimeControl "180+2"]
[Date "2023.02.21"]
[WhiteClock "0:01:58"]
[BlackClock "0:01:23"]

1. e4 {[%clk 0:02:58]}  c5 {[%clk 0:02:59]} 2. Nc3 {[%clk 0:02:58]}  Nc6 {[%clk 0:02:58]} 3. g3 {[%clk 0:02:57]}  g6 {[%clk 0:02:59]} 4. Bg2 {[%clk 0:02:58]}  Bg7 {[%clk 0:02:59]} 5. d3 {[%clk 0:02:58]}  Rb8 {[%clk 0:02:59]} 6. Be3 {[%clk 0:02:58]}  d6 {[%clk 0:02:59]} 7. Qd2 {[%clk 0:02:58]}  b5 {[%clk 0:02:59]} 8. a3 {[%clk 0:02:53]}  e6 {[%clk 0:02:54]} 9. f4 {[%clk 0:02:48]}  Nd4 {[%clk 0:02:53]} 10. Nf3 {[%clk 0:02:46]}  Ne7 {[%clk 0:02:47]} 11. O-O {[%clk 0:02:43]}  Nec6 {[%clk 0:02:47]} 12. Rab1 {[%clk 0:02:43]}  Nxf3+ {[%clk 0:02:45]} 13. Bxf3 {[%clk 0:02:43]}  Nd4 {[%clk 0:02:45]} 14. Bg2 {[%clk 0:02:44]}  O-O {[%clk 0:02:41]} 15. Ne2 {[%clk 0:02:44]}  f5 {[%clk 0:02:37]} 16. exf5 {[%clk 0:02:39]}  Nxf5 {[%clk 0:02:25]} 17. Bf2 {[%clk 0:02:39]}  Bb7 {[%clk 0:02:23]} 18. c3 {[%clk 0:02:35]}  Bxg2 {[%clk 0:02:22]} 19. Kxg2 {[%clk 0:02:36]}  Qc7 {[%clk 0:02:12]} 20. h3 {[%clk 0:02:35]}  Qc6+ {[%clk 0:02:09]} 21. Kh2 {[%clk 0:02:36]}  e5 {[%clk 0:01:59]} 22. b4 {[%clk 0:02:25]}  Rbe8 {[%clk 0:01:50]} 23. bxc5 {[%clk 0:02:22]}  dxc5 {[%clk 0:01:50]} 24. c4 {[%clk 0:02:20]}  bxc4 {[%clk 0:01:44]} 25. dxc4 {[%clk 0:02:21]}  e4 {[%clk 0:01:33]} 26. Qd5+ {[%clk 0:02:16]}  Qxd5 {[%clk 0:01:33]} 27. cxd5 {[%clk 0:02:17]}  e3 {[%clk 0:01:31]} 28. Bg1 {[%clk 0:02:07]}  Nd4 {[%clk 0:01:28]} 29. Nc3 {[%clk 0:01:58]}  e2 {[%clk 0:01:23]} 30. Rfe1 {[%clk 0:01:57]}  Nf3+ {[%clk 0:01:23]} 31. Kg2 {[%clk 0:01:58]}  Nxe1+ {[%clk 0:01:23]} 32. Rxe1 {[%clk 0:01:56]}  Bxc3 {[%clk 0:01:23]} 33. Bf2 {[%clk 0:01:57]}  Bxe1 {[%clk 0:01:23]} 34. Bxe1 {[%clk 0:01:58]} 0-1


[Site "https://www.chess.com"]

[Event "Titled Tuesday Blitz February 21 Late 2023"]
[White "Yeritsyan, Hayk"]
[Black "Gerbelli Neto, Eduardo"]
[WhiteFideId "13307320"]
[BlackFideId "2103281"]
[WhiteElo "2241"]
[BlackElo "2114"]
[Result "1-0"]
[Round "08"]
[TimeControl "180+2"]
[Date "2023.02.21"]
[WhiteClock "0:00:06"]
[BlackClock "0:00:04"]

1. d4 {[%clk 0:03:00]}  d5 {[%clk 0:02:54]} 2. Nf3 {[%clk 0:03:01]}  Nf6 {[%clk 0:02:52]} 3. e3 {[%clk 0:03:01]}  Bf5 {[%clk 0:02:49]} 4. Bd3 {[%clk 0:03:02]}  e6 {[%clk 0:02:49]} 5. Bxf5 {[%clk 0:03:01]}  exf5 {[%clk 0:02:50]} 6. Qd3 {[%clk 0:03:01]}  Qc8 {[%clk 0:02:40]} 7. c4 {[%clk 0:02:59]}  c6 {[%clk 0:02:38]} 8. Nc3 {[%clk 0:02:58]}  Bb4 {[%clk 0:02:37]} 9. Bd2 {[%clk 0:02:58]}  Bxc3 {[%clk 0:02:35]} 10. Bxc3 {[%clk 0:02:57]}  Ne4 {[%clk 0:02:35]} 11. cxd5 {[%clk 0:02:54]}  cxd5 {[%clk 0:02:35]} 12. Bb4 {[%clk 0:02:49]}  Nc6 {[%clk 0:02:34]} 13. Ba3 {[%clk 0:02:49]}  Qc7 {[%clk 0:02:29]} 14. Rc1 {[%clk 0:02:40]}  f6 {[%clk 0:02:18]} 15. O-O {[%clk 0:02:36]}  Kf7 {[%clk 0:02:18]} 16. Qb5 {[%clk 0:02:32]}  Rhd8 {[%clk 0:02:16]} 17. Rc2 {[%clk 0:02:28]}  a6 {[%clk 0:02:16]} 18. Qd3 {[%clk 0:02:23]}  Rac8 {[%clk 0:02:12]} 19. Rfc1 {[%clk 0:02:22]}  Qd7 {[%clk 0:01:42]} 20. Nd2 {[%clk 0:02:13]}  Nxd2 {[%clk 0:01:35]} 21. Qxd2 {[%clk 0:02:12]}  b6 {[%clk 0:01:31]} 22. Qd3 {[%clk 0:02:07]}  b5 {[%clk 0:01:25]} 23. Bc5 {[%clk 0:02:05]}  g6 {[%clk 0:01:18]} 24. a4 {[%clk 0:02:03]}  Qb7 {[%clk 0:01:16]} 25. axb5 {[%clk 0:01:55]}  axb5 {[%clk 0:01:15]} 26. Qb3 {[%clk 0:01:45]}  Na5 {[%clk 0:01:11]} 27. Qa2 {[%clk 0:01:39]}  Nc4 {[%clk 0:01:09]} 28. b3 {[%clk 0:01:38]}  Ra8 {[%clk 0:01:09]} 29. Qb1 {[%clk 0:01:31]}  Na5 {[%clk 0:01:04]} 30. Bb4 {[%clk 0:01:27]}  Rd7 {[%clk 0:01:02]} 31. Rc5 {[%clk 0:01:05]}  Qb6 {[%clk 0:00:49]} 32. Qd3 {[%clk 0:00:49]}  Rb8 {[%clk 0:00:39]} 33. h3 {[%clk 0:00:43]}  Rbb7 {[%clk 0:00:20]} 34. Qc3 {[%clk 0:00:30]}  Ra7 {[%clk 0:00:17]} 35. Qd3 {[%clk 0:00:26]}  Rab7 {[%clk 0:00:17]} 36. Rc8 {[%clk 0:00:22]}  Rbc7 {[%clk 0:00:16]} 37. R8xc7 {[%clk 0:00:06]}  Rxc7 {[%clk 0:00:17]} 38. Rxc7+ {[%clk 0:00:06]}  Qxc7 {[%clk 0:00:18]} 39. Qxb5 {[%clk 0:00:07]}  Qc1+ {[%clk 0:00:18]} 40. Kh2 {[%clk 0:00:06]}  Nxb3 {[%clk 0:00:17]} 41. Qxd5+ {[%clk 0:00:07]}  Kg7 {[%clk 0:00:16]} 42. Qxb3 {[%clk 0:00:08]}  Qf1 {[%clk 0:00:12]} 43. Qc2 {[%clk 0:00:06]}  Qb5 {[%clk 0:00:10]} 44. Bd6 {[%clk 0:00:06]}  g5 {[%clk 0:00:09]} 45. Qc7+ {[%clk 0:00:03]}  Kg6 {[%clk 0:00:10]} 46. Qc5 {[%clk 0:00:03]}  Qe2 {[%clk 0:00:10]} 47. Bg3 {[%clk 0:00:03]}  h5 {[%clk 0:00:09]} 48. h4 {[%clk 0:00:04]}  f4 {[%clk 0:00:08]} 49. exf4 {[%clk 0:00:04]}  gxf4 {[%clk 0:00:06]} 50. Bxf4 {[%clk 0:00:04]}  Qxf2 {[%clk 0:00:07]} 51. Bg3 {[%clk 0:00:05]}  Qe3 {[%clk 0:00:06]} 52. Qd5 {[%clk 0:00:05]}  Qd2 {[%clk 0:00:06]} 53. Qd6 {[%clk 0:00:06]}  Qe3 {[%clk 0:00:05]} 54. d5 {[%clk 0:00:06]}  Qe4 {[%clk 0:00:04]} 55. Qe6 {[%clk 0:00:06]}  Qd3 {[%clk 0:00:03]} 56. d6 {[%clk 0:00:06]}  Kg7 {[%clk 0:00:04]} 57. d7 {[%clk 0:00:06]} 1-0


[Site "https://www.chess.com"]

[Event "Titled Tuesday Blitz February 21 Late 2023"]
[White "Kalajzic, Ivan"]
[Black "Jimenez Garcia, Emmanuel"]
[WhiteFideId "14506378"]
[BlackFideId "6504779"]
[WhiteElo "2062"]
[BlackElo "2410"]
[Result "0-1"]
[Round "08"]
[TimeControl "180+2"]
[Date "2023.02.21"]
[WhiteClock "0:00:01"]
[BlackClock "0:00:50"]

1. d4 {[%clk 0:02:59]}  Nf6 {[%clk 0:02:59]} 2. Nc3 {[%clk 0:02:59]}  d5 {[%clk 0:02:59]} 3. Bg5 {[%clk 0:03:00]}  Nbd7 {[%clk 0:02:59]} 4. e3 {[%clk 0:03:00]}  e6 {[%clk 0:02:59]} 5. f4 {[%clk 0:03:00]}  Be7 {[%clk 0:02:59]} 6. Nf3 {[%clk 0:03:00]}  a6 {[%clk 0:02:59]} 7. Bd3 {[%clk 0:03:00]}  c5 {[%clk 0:02:59]} 8. O-O {[%clk 0:03:00]}  b5 {[%clk 0:03:00]} 9. Ne5 {[%clk 0:02:57]}  Bb7 {[%clk 0:03:01]} 10. Qe1 {[%clk 0:02:36]}  b4 {[%clk 0:02:40]} 11. Nd1 {[%clk 0:02:34]}  c4 {[%clk 0:02:40]} 12. Be2 {[%clk 0:02:34]}  Ne4 {[%clk 0:02:40]} 13. Bxe7 {[%clk 0:02:33]}  Qxe7 {[%clk 0:02:41]} 14. Nf2 {[%clk 0:02:25]}  Nxf2 {[%clk 0:02:24]} 15. Qxf2 {[%clk 0:02:22]}  O-O {[%clk 0:02:22]} 16. Qg3 {[%clk 0:02:03]}  f6 {[%clk 0:02:10]} 17. Nxd7 {[%clk 0:01:51]}  Qxd7 {[%clk 0:02:11]} 18. c3 {[%clk 0:01:41]}  a5 {[%clk 0:02:11]} 19. Bd1 {[%clk 0:01:27]}  a4 {[%clk 0:02:02]} 20. a3 {[%clk 0:01:20]}  bxc3 {[%clk 0:01:54]} 21. bxc3 {[%clk 0:01:19]}  Bc6 {[%clk 0:01:54]} 22. Bc2 {[%clk 0:01:18]}  Rab8 {[%clk 0:01:50]} 23. Rab1 {[%clk 0:01:16]}  Rb3 {[%clk 0:01:50]} 24. Bxb3 {[%clk 0:01:13]}  cxb3 {[%clk 0:01:43]} 25. Qe1 {[%clk 0:01:01]}  Bb5 {[%clk 0:01:41]} 26. Rf2 {[%clk 0:01:01]}  Bd3 {[%clk 0:01:40]} 27. Rd1 {[%clk 0:00:56]}  Be4 {[%clk 0:01:39]} 28. Qd2 {[%clk 0:00:53]}  Rc8 {[%clk 0:01:37]} 29. Qb2 {[%clk 0:00:50]}  Rc4 {[%clk 0:01:29]} 30. Rc1 {[%clk 0:00:50]}  Kf7 {[%clk 0:01:29]} 31. Rd2 {[%clk 0:00:48]}  Ke7 {[%clk 0:01:29]} 32. Kf2 {[%clk 0:00:49]}  Kd6 {[%clk 0:01:29]} 33. h3 {[%clk 0:00:46]}  Qf7 {[%clk 0:01:21]} 34. g4 {[%clk 0:00:45]}  h5 {[%clk 0:01:20]} 35. Kg3 {[%clk 0:00:44]}  Qg6 {[%clk 0:01:17]} 36. Rf2 {[%clk 0:00:40]}  hxg4 {[%clk 0:01:13]} 37. hxg4 {[%clk 0:00:39]}  Bf5 {[%clk 0:01:14]} 38. Qe2 {[%clk 0:00:39]}  b2 {[%clk 0:01:13]} 39. Qxb2 {[%clk 0:00:31]}  Qxg4+ {[%clk 0:01:13]} 40. Kh2 {[%clk 0:00:31]}  Qh3+ {[%clk 0:01:14]} 41. Kg1 {[%clk 0:00:31]}  Qg3+ {[%clk 0:01:15]} 42. Kf1 {[%clk 0:00:23]}  Bd3+ {[%clk 0:01:14]} 43. Re2 {[%clk 0:00:20]}  Qxe3 {[%clk 0:01:15]} 44. Qb8+ {[%clk 0:00:18]}  Ke7 {[%clk 0:01:09]} 45. Qb7+ {[%clk 0:00:07]}  Kf8 {[%clk 0:01:03]} 46. Re1 {[%clk 0:00:06]}  Qxf4+ {[%clk 0:00:58]} 47. Kg1 {[%clk 0:00:06]}  Qg3+ {[%clk 0:00:58]} 48. Kf1 {[%clk 0:00:06]}  Rxc3 {[%clk 0:00:52]} 49. Qb6 {[%clk 0:00:03]}  Bxe2+ {[%clk 0:00:50]} 50. Rxe2 {[%clk 0:00:01]}  Rc1+ {[%clk 0:00:50]} 0-1


[Site "https://www.chess.com"]

[Event "Titled Tuesday Blitz February 21 Late 2023"]
[White "Gatterer, Florian"]
[Black "Winkels, Marcel"]
[WhiteFideId "811688"]
[BlackFideId "1003887"]
[WhiteElo "2170"]
[BlackElo "1960"]
[Result "1/2-1/2"]
[Round "08"]
[TimeControl "180+2"]
[Date "2023.02.21"]
[WhiteClock "0:00:27"]
[BlackClock "0:00:37"]

1. Nf3 {[%clk 0:03:00]}  Nf6 {[%clk 0:02:58]} 2. g3 {[%clk 0:02:59]}  g6 {[%clk 0:02:54]} 3. b3 {[%clk 0:02:59]}  Bg7 {[%clk 0:02:54]} 4. Bb2 {[%clk 0:02:59]}  c5 {[%clk 0:02:54]} 5. c4 {[%clk 0:02:59]}  O-O {[%clk 0:02:52]} 6. Bg2 {[%clk 0:02:59]}  Nc6 {[%clk 0:02:48]} 7. O-O {[%clk 0:02:57]}  d5 {[%clk 0:02:42]} 8. cxd5 {[%clk 0:02:56]}  Nxd5 {[%clk 0:02:43]} 9. Bxg7 {[%clk 0:02:56]}  Kxg7 {[%clk 0:02:42]} 10. Qc1 {[%clk 0:02:55]}  b6 {[%clk 0:02:33]} 11. Nc3 {[%clk 0:02:55]}  e5 {[%clk 0:02:21]} 12. Nxd5 {[%clk 0:02:27]}  Qxd5 {[%clk 0:02:20]} 13. Nxe5 {[%clk 0:02:27]}  Qxe5 {[%clk 0:02:20]} 14. Bxc6 {[%clk 0:02:27]}  Rb8 {[%clk 0:02:02]} 15. Qc3 {[%clk 0:02:26]}  Qxc3 {[%clk 0:02:00]} 16. dxc3 {[%clk 0:02:26]}  Bg4 {[%clk 0:01:57]} 17. f3 {[%clk 0:02:21]}  Rbc8 {[%clk 0:01:55]} 18. Bd5 {[%clk 0:02:18]}  Bh3 {[%clk 0:01:50]} 19. Rfe1 {[%clk 0:02:12]}  Rfe8 {[%clk 0:01:42]} 20. Kf2 {[%clk 0:02:09]}  h5 {[%clk 0:01:39]} 21. Rad1 {[%clk 0:02:06]}  Rcd8 {[%clk 0:01:36]} 22. e4 {[%clk 0:02:03]}  Kf6 {[%clk 0:01:30]} 23. Bc6 {[%clk 0:01:58]}  Rf8 {[%clk 0:01:28]} 24. Ke3 {[%clk 0:01:47]}  Ke7 {[%clk 0:01:27]} 25. Rg1 {[%clk 0:01:35]}  Be6 {[%clk 0:01:24]} 26. c4 {[%clk 0:01:30]}  Rd6 {[%clk 0:01:21]} 27. Rxd6 {[%clk 0:01:29]}  Kxd6 {[%clk 0:01:20]} 28. Bd5 {[%clk 0:01:29]}  Bxd5 {[%clk 0:01:07]} 29. cxd5 {[%clk 0:01:19]}  g5 {[%clk 0:01:06]} 30. Rd1 {[%clk 0:01:14]}  f6 {[%clk 0:01:04]} 31. f4 {[%clk 0:01:11]}  gxf4+ {[%clk 0:00:58]} 32. gxf4 {[%clk 0:01:11]}  Rg8 {[%clk 0:00:58]} 33. Kf3 {[%clk 0:01:09]}  Rg4 {[%clk 0:00:54]} 34. h3 {[%clk 0:01:07]}  Rg7 {[%clk 0:00:53]} 35. a4 {[%clk 0:01:02]}  a6 {[%clk 0:00:51]} 36. Rd2 {[%clk 0:00:39]}  Rg1 {[%clk 0:00:47]} 37. e5+ {[%clk 0:00:39]}  fxe5 {[%clk 0:00:46]} 38. fxe5+ {[%clk 0:00:39]}  Kxe5 {[%clk 0:00:46]} 39. d6 {[%clk 0:00:39]}  Rg8 {[%clk 0:00:45]} 40. d7 {[%clk 0:00:36]}  Rd8 {[%clk 0:00:43]} 41. Kg3 {[%clk 0:00:31]}  Ke6 {[%clk 0:00:38]} 42. Kh4 {[%clk 0:00:31]}  Rxd7 {[%clk 0:00:38]} 43. Rxd7 {[%clk 0:00:29]}  Kxd7 {[%clk 0:00:36]} 44. Kxh5 {[%clk 0:00:29]}  b5 {[%clk 0:00:36]} 45. axb5 {[%clk 0:00:30]}  axb5 {[%clk 0:00:36]} 46. Kg4 {[%clk 0:00:30]}  c4 {[%clk 0:00:37]} 47. bxc4 {[%clk 0:00:29]}  bxc4 {[%clk 0:00:36]} 48. Kf3 {[%clk 0:00:29]}  Ke6 {[%clk 0:00:35]} 49. Ke3 {[%clk 0:00:26]}  Kf5 {[%clk 0:00:35]} 50. Kd4 {[%clk 0:00:26]}  Kg5 {[%clk 0:00:36]} 51. Kxc4 {[%clk 0:00:27]}  Kh4 {[%clk 0:00:36]} 52. Kc3 {[%clk 0:00:27]}  Kxh3 {[%clk 0:00:37]} 1/2-1/2


[Site "https://www.chess.com"]

[Event "Titled Tuesday Blitz February 21 Late 2023"]
[White "Manu_ChessExcelsior"]
[Black "Lerch, Philipp"]
[BlackFideId "4654129"]
[WhiteElo "2095"]
[BlackElo "2305"]
[Result "1-0"]
[Round "08"]
[TimeControl "180+2"]
[Date "2023.02.21"]
[WhiteClock "0:00:29"]
[BlackClock "0:00:30"]

1. e4 {[%clk 0:03:00]}  c5 {[%clk 0:02:59]} 2. g3 {[%clk 0:03:00]}  d5 {[%clk 0:02:57]} 3. exd5 {[%clk 0:02:59]}  Qxd5 {[%clk 0:02:58]} 4. Nf3 {[%clk 0:02:59]}  e5 {[%clk 0:02:57]} 5. Nc3 {[%clk 0:02:57]}  Qe6 {[%clk 0:02:55]} 6. d3 {[%clk 0:02:16]}  Nc6 {[%clk 0:02:50]} 7. Bg2 {[%clk 0:02:15]}  h6 {[%clk 0:02:42]} 8. O-O {[%clk 0:02:15]}  Nf6 {[%clk 0:02:20]} 9. Re1 {[%clk 0:02:14]}  Be7 {[%clk 0:02:11]} 10. Nxe5 {[%clk 0:01:44]}  Nxe5 {[%clk 0:02:05]} 11. f4 {[%clk 0:01:38]}  O-O {[%clk 0:01:23]} 12. fxe5 {[%clk 0:01:36]}  Nd7 {[%clk 0:01:16]} 13. Bd5 {[%clk 0:01:23]}  Qb6 {[%clk 0:01:14]} 14. e6 {[%clk 0:01:01]}  Nf6 {[%clk 0:00:57]} 15. exf7+ {[%clk 0:01:01]}  Rxf7 {[%clk 0:00:40]} 16. Rxe7 {[%clk 0:00:45]}  Nxd5 {[%clk 0:00:40]} 17. Nxd5 {[%clk 0:00:45]}  Qd6 {[%clk 0:00:39]} 18. Rxf7 {[%clk 0:00:33]}  Kxf7 {[%clk 0:00:38]} 19. Qf3+ {[%clk 0:00:34]}  Kg8 {[%clk 0:00:37]} 20. Bf4 {[%clk 0:00:33]}  Qf8 {[%clk 0:00:33]} 21. Re1 {[%clk 0:00:32]}  Bd7 {[%clk 0:00:30]} 22. Ne7+ {[%clk 0:00:30]}  Kh7 {[%clk 0:00:30]} 23. Qe4+ {[%clk 0:00:29]} 1-0


[Site "https://www.chess.com"]

[Event "Titled Tuesday Blitz February 21 Late 2023"]
[White "Pinheiro, Iung Alicio de O."]
[Black "Kovalevsky, Stanislav"]
[WhiteFideId "2104350"]
[BlackFideId "13508598"]
[WhiteElo "2306"]
[BlackElo "2237"]
[Result "0-1"]
[Round "08"]
[TimeControl "180+2"]
[Date "2023.02.21"]
[WhiteClock "0:00:06"]
[BlackClock "0:00:06"]

1. c4 {[%clk 0:03:00]}  e6 {[%clk 0:02:59]} 2. g3 {[%clk 0:03:00]}  d5 {[%clk 0:03:00]} 3. Nf3 {[%clk 0:03:00]}  Nf6 {[%clk 0:03:00]} 4. Bg2 {[%clk 0:03:00]}  c6 {[%clk 0:03:00]} 5. b3 {[%clk 0:02:52]}  Nbd7 {[%clk 0:02:58]} 6. Bb2 {[%clk 0:02:50]}  Be7 {[%clk 0:02:53]} 7. O-O {[%clk 0:02:50]}  O-O {[%clk 0:02:53]} 8. d3 {[%clk 0:02:46]}  b6 {[%clk 0:02:53]} 9. Nbd2 {[%clk 0:02:45]}  Bb7 {[%clk 0:02:54]} 10. a3 {[%clk 0:02:43]}  a5 {[%clk 0:02:53]} 11. Ra2 {[%clk 0:02:42]}  a4 {[%clk 0:02:52]} 12. b4 {[%clk 0:02:41]}  c5 {[%clk 0:02:52]} 13. bxc5 {[%clk 0:02:33]}  Nxc5 {[%clk 0:02:47]} 14. Ne5 {[%clk 0:02:30]}  dxc4 {[%clk 0:02:40]} 15. Bxb7 {[%clk 0:02:26]}  Nxb7 {[%clk 0:02:41]} 16. Ndxc4 {[%clk 0:02:20]}  b5 {[%clk 0:01:50]} 17. Nd2 {[%clk 0:02:09]}  Bc5 {[%clk 0:01:44]} 18. Ndf3 {[%clk 0:02:02]}  Qd5 {[%clk 0:01:40]} 19. Ra1 {[%clk 0:01:56]}  Rfc8 {[%clk 0:01:39]} 20. e4 {[%clk 0:01:49]}  Qd8 {[%clk 0:01:28]} 21. Qe2 {[%clk 0:01:43]}  b4 {[%clk 0:01:16]} 22. d4 {[%clk 0:01:25]}  bxa3 {[%clk 0:01:11]} 23. Bxa3 {[%clk 0:01:17]}  Bxa3 {[%clk 0:01:07]} 24. Rxa3 {[%clk 0:01:18]}  Nd6 {[%clk 0:01:03]} 25. Nd2 {[%clk 0:01:04]}  Qb6 {[%clk 0:00:56]} 26. Qd3 {[%clk 0:01:02]}  Qa6 {[%clk 0:00:15]} 27. Qe3 {[%clk 0:00:54]}  Nb5 {[%clk 0:00:12]} 28. Rd3 {[%clk 0:00:45]}  a3 {[%clk 0:00:12]} 29. Ndc4 {[%clk 0:00:43]}  a2 {[%clk 0:00:11]} 30. Ra1 {[%clk 0:00:43]}  Nd6 {[%clk 0:00:09]} 31. Nxd6 {[%clk 0:00:37]}  Qxd6 {[%clk 0:00:10]} 32. Rd2 {[%clk 0:00:36]}  Qb4 {[%clk 0:00:08]} 33. Rdd1 {[%clk 0:00:20]}  Rc2 {[%clk 0:00:06]} 34. Nd3 {[%clk 0:00:18]}  Qc3 {[%clk 0:00:05]} 35. Nc5 {[%clk 0:00:15]}  g6 {[%clk 0:00:05]} 36. Qxc3 {[%clk 0:00:12]}  Rxc3 {[%clk 0:00:06]} 37. Rd2 {[%clk 0:00:12]}  Rca3 {[%clk 0:00:05]} 38. f3 {[%clk 0:00:11]}  Kf8 {[%clk 0:00:05]} 39. Rb2 {[%clk 0:00:11]}  Ke7 {[%clk 0:00:04]} 40. Kf2 {[%clk 0:00:11]}  Nd7 {[%clk 0:00:04]} 41. Nxd7 {[%clk 0:00:10]}  Kxd7 {[%clk 0:00:04]} 42. Ke2 {[%clk 0:00:11]}  R8a7 {[%clk 0:00:04]} 43. Kd2 {[%clk 0:00:11]}  Rxf3 {[%clk 0:00:04]} 44. Ke2 {[%clk 0:00:10]}  Rfa3 {[%clk 0:00:04]} 45. Kd2 {[%clk 0:00:10]}  Kd6 {[%clk 0:00:04]} 46. Kc2 {[%clk 0:00:10]}  e5 {[%clk 0:00:04]} 47. d5 {[%clk 0:00:09]}  Kc5 {[%clk 0:00:04]} 48. Rb8 {[%clk 0:00:09]}  Kd4 {[%clk 0:00:04]} 49. Rb4+ {[%clk 0:00:08]}  Ke3 {[%clk 0:00:04]} 50. Rb8 {[%clk 0:00:09]}  Kxe4 {[%clk 0:00:04]} 51. Kb2 {[%clk 0:00:09]}  Rd3 {[%clk 0:00:03]} 52. Re1+ {[%clk 0:00:09]}  Kxd5 {[%clk 0:00:03]} 53. Ka1 {[%clk 0:00:09]}  e4 {[%clk 0:00:03]} 54. Rd8+ {[%clk 0:00:09]}  Kc4 {[%clk 0:00:03]} 55. Rc8+ {[%clk 0:00:09]}  Kd4 {[%clk 0:00:04]} 56. Rd8+ {[%clk 0:00:09]}  Kc3 {[%clk 0:00:04]} 57. Rc8+ {[%clk 0:00:06]}  Kd2 {[%clk 0:00:04]} 58. Rcc1 {[%clk 0:00:07]}  e3 {[%clk 0:00:04]} 59. Rcd1+ {[%clk 0:00:05]}  Kc3 {[%clk 0:00:05]} 60. Rc1+ {[%clk 0:00:06]}  Kd4 {[%clk 0:00:05]} 61. Rc8 {[%clk 0:00:06]}  Rd7 {[%clk 0:00:05]} 62. Rec1 {[%clk 0:00:05]}  e2 {[%clk 0:00:05]} 63. R8c4+ {[%clk 0:00:05]}  Ke3 {[%clk 0:00:06]} 64. Rc5 {[%clk 0:00:04]}  Rd1 {[%clk 0:00:05]} 65. Kb2 {[%clk 0:00:04]}  Rxc1 {[%clk 0:00:05]} 66. Rxc1 {[%clk 0:00:04]}  Rd1 {[%clk 0:00:06]} 67. Rc3+ {[%clk 0:00:04]}  Kf2 {[%clk 0:00:06]} 68. Rc2 {[%clk 0:00:04]}  a1=Q+ {[%clk 0:00:05]} 69. Kb3 {[%clk 0:00:05]}  Rb1+ {[%clk 0:00:05]} 70. Kc4 {[%clk 0:00:05]}  Rc1 {[%clk 0:00:06]} 71. Kd3 {[%clk 0:00:05]}  Rxc2 {[%clk 0:00:06]} 72. Kxc2 {[%clk 0:00:06]}  e1=Q {[%clk 0:00:07]} 73. Kd3 {[%clk 0:00:06]}  Qac3# {[%clk 0:00:06]} 0-1


[Site "https://www.chess.com"]

[Event "Titled Tuesday Blitz February 21 Late 2023"]
[White "Ruiz Aguilar, Pablo Alexander"]
[Black "Hirneise, Jens"]
[WhiteFideId "4401352"]
[BlackFideId "24614734"]
[WhiteElo "2161"]
[BlackElo "2277"]
[Result "0-1"]
[Round "08"]
[TimeControl "180+2"]
[Date "2023.02.21"]
[WhiteClock "0:00:03"]
[BlackClock "0:01:18"]

1. e4 {[%clk 0:03:00]}  c5 {[%clk 0:02:51]} 2. Nf3 {[%clk 0:03:00]}  Nf6 {[%clk 0:02:51]} 3. Nc3 {[%clk 0:02:59]}  d5 {[%clk 0:02:48]} 4. exd5 {[%clk 0:02:59]}  Nxd5 {[%clk 0:02:47]} 5. Bb5+ {[%clk 0:02:58]}  Nc6 {[%clk 0:02:48]} 6. O-O {[%clk 0:02:55]}  Nc7 {[%clk 0:02:43]} 7. Bxc6+ {[%clk 0:02:47]}  bxc6 {[%clk 0:02:44]} 8. Re1 {[%clk 0:02:47]}  Ne6 {[%clk 0:02:41]} 9. h3 {[%clk 0:02:47]}  g6 {[%clk 0:02:41]} 10. Ne5 {[%clk 0:02:44]}  Bg7 {[%clk 0:02:34]} 11. d3 {[%clk 0:02:38]}  Qc7 {[%clk 0:02:27]} 12. Qf3 {[%clk 0:02:01]}  Bxe5 {[%clk 0:02:25]} 13. Rxe5 {[%clk 0:02:01]}  O-O {[%clk 0:02:20]} 14. Bf4 {[%clk 0:01:55]}  Nxf4 {[%clk 0:02:17]} 15. Qxf4 {[%clk 0:01:55]}  f6 {[%clk 0:02:13]} 16. Qc4+ {[%clk 0:01:55]}  Kg7 {[%clk 0:02:09]} 17. Rxc5 {[%clk 0:01:55]}  Bd7 {[%clk 0:02:05]} 18. Nd5 {[%clk 0:01:42]}  Qd6 {[%clk 0:02:04]} 19. Nb4 {[%clk 0:01:35]}  a5 {[%clk 0:01:59]} 20. Nxc6 {[%clk 0:00:51]}  Rfc8 {[%clk 0:01:55]} 21. Re1 {[%clk 0:00:30]}  Rxc6 {[%clk 0:01:50]} 22. Rxc6 {[%clk 0:00:29]}  Bxc6 {[%clk 0:01:50]} 23. Qc3 {[%clk 0:00:25]}  Bd5 {[%clk 0:01:48]} 24. b3 {[%clk 0:00:21]}  Bf7 {[%clk 0:01:46]} 25. a4 {[%clk 0:00:19]}  e5 {[%clk 0:01:41]} 26. Re4 {[%clk 0:00:16]}  Ra7 {[%clk 0:01:35]} 27. Qd2 {[%clk 0:00:14]}  g5 {[%clk 0:01:31]} 28. Rg4 {[%clk 0:00:12]}  h6 {[%clk 0:01:29]} 29. h4 {[%clk 0:00:12]}  Be6 {[%clk 0:01:28]} 30. Rg3 {[%clk 0:00:11]}  Qd4 {[%clk 0:01:26]} 31. hxg5 {[%clk 0:00:10]}  hxg5 {[%clk 0:01:27]} 32. Re3 {[%clk 0:00:06]}  Kg6 {[%clk 0:01:23]} 33. Re4 {[%clk 0:00:07]}  Qa1+ {[%clk 0:01:22]} 34. Kh2 {[%clk 0:00:06]}  Rh7+ {[%clk 0:01:22]} 35. Kg3 {[%clk 0:00:06]}  Qh1 {[%clk 0:01:21]} 36. Kf3 {[%clk 0:00:03]}  Rh2 {[%clk 0:01:18]} 0-1


[Site "https://www.chess.com"]